bitfinex/quotes_ETHUSD_20250123
["timestamp","ask_amount","ask_price","bid_price","bid_amount"]
[1737648713219,0.41534481,3287.6,3284.9,4.20382562]
[1737648713448,0.43798862,3288.2,3284.9,4.20382562]
[1737648713449,0.1628,3287.5,3285.4,3.04375]
[1737648713664,0.1628,3287.5,3285.0,0.55]
[1737648713902,0.1628,3287.3,3284.0,1.1356]
[1737648714032,0.1628,3287.3,3285.1,35.0]
[1737648714229,0.1628,3287.1,3285.1,38.10202562]
[1737648714429,0.43798862,3287.0,3285.1,38.10202562]
[1737648714671,0.43798862,3287.0,3284.0,4.18065]
[1737648714672,0.1628,3286.9,3284.1,3.04496]
[1737648715023,0.1628,3286.9,3284.1,0.55]
[1737648715270,0.1628,3286.9,3284.5,35.0]
[1737648715418,0.1628,3286.8,3284.0,1.1356]
[1737648715623,0.1628,3286.7,3284.0,1.1356]
[1737648715918,0.1628,3286.6,3284.1,35.0]
[1737648716131,0.1628,3286.6,3284.2,3.10202562]
[1737648716456,0.1628,3286.6,3284.3,0.55]
[1737648716661,0.1628,3286.6,3284.0,1.1356]
[1737648716836,0.1628,3286.6,3284.2,0.55]
[1737648717244,0.1628,3286.6,3284.1,0.55]
[1737648717443,0.1628,3286.6,3284.2,0.473062]
[1737648717643,0.1628,3286.6,3284.4,3.04466]
[1737648717959,0.1628,3286.6,3285.0,0.55]
[1737648718260,0.1628,3287.5,3285.9,1.5757]
[1737648718642,0.1628,3287.5,3286.1,0.55]
[1737648718837,0.1628,3287.5,3286.3,0.55]
[1737648719266,0.1628,3287.5,3286.0,35.0]
[1737648719768,0.1628,3287.5,3286.1,0.55]
[1737648719949,0.1628,3287.5,3286.3,2.0587277]
[1737648720175,0.1628,3287.5,3286.1,0.55]
[1737648720475,0.1628,3287.5,3286.2,3.10202562]
[1737648721176,0.1628,3287.5,3286.3,0.55]
[1737648721374,0.1628,3287.5,3286.2,3.10202562]
[1737648721579,0.1628,3287.5,3285.9,1.0257]
[1737648722156,0.1628,3287.5,3286.0,0.55]
[1737648722481,0.1628,3287.5,3285.9,1.0257]
[1737648722653,0.1628,3287.5,3285.4,1.1246]
[1737648722978,0.40680713,3288.9,3284.3,3.04477]
[1737648722979,0.1628,3287.3,3284.3,1.1]
[1737648723180,0.1628,3287.1,3284.3,1.1]
[1737648723382,0.41534481,3287.0,3284.3,1.1]
[1737648723569,0.41534481,3287.0,3283.2,1.0302]
[1737648723570,0.55,3286.8,3283.2,1.0302]
[1737648723769,0.30930226,3288.4,3283.2,1.0302]
[1737648723770,0.1628,3286.6,3283.2,1.0302]
[1737648724085,0.1628,3286.4,3283.3,35.407606]
[1737648724248,0.1628,3286.2,3282.9,0.78136141]
[1737648724446,0.5,3287.8,3282.9,0.78136141]
[1737648724447,0.1628,3286.0,3282.9,0.304612]
[1737648724770,0.1628,3285.8,3282.9,35.0]
[1737648724974,0.82215194,3285.7,3282.9,35.0]
[1737648725153,0.1628,3285.6,3282.9,35.0]
[1737648725352,0.57814481,3285.5,3283.0,0.55]
[1737648725552,0.1628,3285.5,3282.9,35.0]
[1737648725787,0.1628,3285.5,3283.0,3.10202562]
[1737648726106,0.41534481,3285.4,3283.0,3.10202562]
[1737648726305,0.1628,3285.3,3282.9,35.0]
[1737648726542,0.41534481,3285.2,3282.9,35.0]
[1737648726681,0.1628,3285.1,3282.9,35.0]
[1737648727019,0.1628,3284.9,3282.2,1.0341]
[1737648727311,0.41534481,3285.0,3282.2,1.0341]
[1737648727312,0.57814481,3284.8,3282.2,1.0341]
[1737648727513,0.1628,3284.7,3282.3,35.0]
[1737648727838,0.1628,3284.7,3281.2,1.58538982]
[1737648727839,0.1628,3284.6,3281.2,1.0486]
[1737648727984,0.1628,3284.5,3281.2,1.0486]
[1737648728313,0.1628,3284.3,3281.3,35.0]
[1737648728480,0.41534481,3284.2,3281.3,35.0]
[1737648728680,0.1628,3284.1,3281.3,35.0]
[1737648728881,0.41534481,3284.0,3281.4,4.63273046]
[1737648729136,0.1628,3283.9,3281.4,3.10202562]
[1737648729294,0.1628,3283.9,3281.3,1.5242365]
[1737648729497,0.1628,3283.9,3281.5,1.59799711]
[1737648729743,0.2791608,3283.8,3281.9,1.5589799]
[1737648729882,0.1628,3283.7,3281.5,1.59799711]
[1737648730087,0.1628,3283.7,3281.7,1.59757972]
[1737648730292,0.1628,3283.7,3281.4,35.0]
[1737648730293,0.57814481,3283.7,3281.4,35.0]
[1737648730518,0.1628,3283.5,3280.8,0.0972073]
[1737648730719,0.1628,3283.3,3280.9,1.50624993]
[1737648730926,0.1628,3283.3,3281.1,1.5950906]
[1737648731121,0.1628,3283.3,3281.1,4.69711622]
[1737648731294,0.1628,3283.3,3281.2,0.55]
[1737648731492,0.1628,3283.3,3280.8,1.61227541]
[1737648731706,0.1628,3283.1,3280.9,0.03647523]
[1737648731903,0.1628,3283.0,3280.9,0.03647523]
[1737648732109,0.1628,3282.9,3280.8,0.0972073]
[1737648732341,0.1628,3282.7,3280.8,0.0972073]
[1737648732496,0.38129112,3282.9,3278.7,1.58880945]
[1737648732497,0.41534481,3282.6,3278.7,1.58880945]
[1737648732710,0.41534481,3282.6,3278.6,6.17144]
[1737648732711,0.41534481,3282.6,3278.9,1.52837601]
[1737648732909,0.83197206,3282.5,3278.9,1.52837601]
[1737648733112,0.69731687,3282.5,3279.5,1.53095818]
[1737648733312,0.69731687,3282.5,3279.4,3.04932]
[1737648733313,0.28197206,3282.5,3279.3,1.52689702]
[1737648733521,0.0656,3282.4,3279.3,4.57627702]
[1737648733823,0.28197206,3282.3,3279.7,1.55450308]
[1737648734019,0.28197206,3282.3,3279.6,35.55]
[1737648734020,0.0656,3282.2,3279.8,2.12248896]
[1737648734420,0.0656,3282.2,3279.5,1.53095818]
[1737648734633,0.0656,3282.2,3279.4,0.5659677]
[1737648734634,0.0656,3282.2,3279.8,2.12248896]
[1737648734945,0.0656,3282.0,3279.9,35.0]
[1737648735149,0.0656,3282.0,3279.4,0.5659677]
[1737648735313,0.0656,3281.8,3278.9,1.52837601]
[1737648735514,0.41534481,3281.7,3278.9,35.0]
[1737648735715,0.0656,3281.6,3278.9,35.0]
[1737648735924,0.55,3281.4,3278.9,35.0]
[1737648736139,0.0656,3281.2,3278.2,1.56737572]
[1737648736415,0.0961,3281.1,3278.3,1.86470571]
[1737648736615,0.0961,3281.1,3278.3,35.29541182]
[1737648736828,0.0961,3281.1,3278.4,1.54669277]
[1737648737228,0.0961,3280.9,3278.8,1.55732243]
[1737648737426,0.0961,3280.9,3278.6,1.53287037]
[1737648737640,0.0961,3280.9,3278.9,1.5571529]
[1737648737836,0.0961,3280.9,3278.8,1.55732243]
[1737648738047,0.0961,3280.7,3279.0,0.0288588]
[1737648738247,0.0961,3280.7,3279.1,35.0]
[1737648738412,0.0961,3280.7,3279.1,35.02861986]
[1737648738744,0.0961,3280.7,3279.2,1.50712854]
[1737648738970,0.0961,3280.7,3279.2,1.53577487]
[1737648739149,0.28197206,3280.6,3279.2,1.53577487]
[1737648739355,0.0961,3280.5,3279.2,1.53577487]
[1737648740059,0.0961,3280.5,3279.3,0.55]
[1737648740251,0.0961,3280.5,3279.5,0.55]
[1737648740460,0.0961,3280.5,3279.6,35.0]
[1737648740751,0.0961,3280.5,3279.7,0.55]
[1737648740939,0.0961,3282.3,3279.9,0.55]
[1737648741137,0.31839295,3282.4,3279.8,1.57248896]
[1737648741138,0.51144481,3282.2,3279.8,1.60073179]
[1737648741344,0.0961,3282.1,3280.0,0.02833002]
[1737648741540,0.0961,3282.0,3279.9,0.02835087]
[1737648741720,0.0961,3282.0,3280.1,0.02826732]
[1737648741923,0.0961,3282.0,3279.8,4.67451458]
[1737648742149,0.0961,3282.0,3279.9,0.57798668]
[1737648742345,0.0961,3282.0,3280.1,1.58930555]
[1737648742679,0.31839295,3282.4,3280.1,1.58930555]
[1737648742680,0.0961,3281.8,3280.1,1.58930555]
[1737648742887,0.41534481,3281.9,3278.8,1.035]
[1737648742888,0.6461,3281.7,3280.3,1.55459862]
[1737648743165,0.0961,3281.6,3280.4,0.03105824]
[1737648743374,0.0961,3281.6,3280.5,1.58124014]
[1737648743578,0.0961,3281.6,3280.7,1.55193269]
[1737648743937,0.0961,3281.6,3280.8,0.03077251]
[1737648747851,0.55,3282.1,3280.8,0.03077251]
[1737648748052,0.55,3282.1,3279.8,0.41666667]
[1737648748053,0.55,3282.1,3279.9,1.53671165]
[1737648748455,0.55,3282.1,3279.8,0.41666667]
[1737648748774,0.92016967,3282.1,3279.8,0.41666667]
[1737648749056,0.55,3282.1,3279.8,0.41666667]
[1737648749222,0.0653,3282.0,3279.8,0.41666667]
[1737648749362,0.0653,3282.0,3280.2,1.50543038]
[1737648749702,0.0653,3282.0,3280.4,0.55]
[1737648749907,0.0653,3282.0,3280.6,1.52974933]
[1737648750089,0.0653,3282.0,3280.5,3.7795]
[1737648750090,0.0653,3282.0,3281.0,1.52689854]
[1737648750263,0.0653,3282.0,3280.8,1.51506811]
[1737648750459,0.0653,3282.0,3280.5,3.2295]
[1737648750460,0.0653,3282.0,3280.6,1.52974933]
[1737648751112,0.0653,3282.0,3280.3,0.20554304]
[1737648751113,0.0653,3282.0,3280.4,1.52423213]
[1737648751404,0.0653,3282.0,3280.4,1.69720965]
[1737648751772,0.0653,3282.0,3280.6,1.52974933]
[1737648752173,0.0653,3282.0,3280.5,1.58124014]
[1737648752380,0.0653,3282.0,3280.9,1.50624993]
[1737648752783,0.0653,3282.0,3281.2,0.55]
[1737648752982,0.0653,3282.0,3281.3,1.5242365]
[1737648753515,0.0653,3282.0,3280.7,1.55193269]
[1737648753806,0.0653,3282.0,3280.5,1.58124014]
[1737648754016,0.0653,3282.0,3280.1,1.58930555]
[1737648754306,0.0653,3282.0,3280.2,0.55]
[1737648754505,0.0653,3282.0,3280.7,1.55193269]
[1737648754708,0.0653,3282.0,3281.1,1.5950906]
[1737648755407,0.0653,3282.0,3281.8,0.55]
[1737648755720,0.0653,3282.0,3280.4,1.52423213]
[1737648756232,0.0653,3282.0,3280.4,4.57263213]
[1737648756429,0.0653,3282.0,3281.0,1.52689854]
[1737648756576,0.0653,3282.0,3281.2,1.58538982]
[1737648756774,0.0653,3282.0,3280.4,1.52423213]
[1737648756969,0.3182887,3283.3,3281.2,1.58538982]
[1737648757174,0.3182887,3283.3,3282.3,1.51946251]
[1737648757485,0.3182887,3283.3,3282.9,1.54818506]
[1737648757486,1e-08,3283.3,3282.9,1.54818506]
[1737648757812,1e-08,3283.3,3283.2,2.07990454]
[1737648758132,1e-08,3283.3,3282.5,1.57704936]
[1737648758475,1e-08,3283.3,3282.9,1.54818506]
[1737648758676,1e-08,3283.3,3283.1,1.54226906]
[1737648758916,1e-08,3283.3,3283.2,2.07990454]
[1737648759128,1e-08,3283.3,3282.5,1.57704936]
[1737648759278,1e-08,3283.3,3282.5,1.75544892]
[1737648759477,1e-08,3283.3,3282.8,0.55]
[1737648759712,1e-08,3283.3,3282.9,1.54818506]
[1737648759915,1e-08,3283.3,3282.6,1.55836052]
[1737648760278,1e-08,3283.3,3283.0,1.54126224]
[1737648760484,1e-08,3283.3,3283.2,2.07990454]
[1737648762116,13.0,3287.8,3283.4,1.5928363]
[1737648762320,13.0,3287.8,3283.6,2.14946573]
[1737648762877,3.37016967,3287.7,3283.6,2.14946573]
[1737648763118,0.5,3288.1,3283.5,36.1112]
[1737648763119,0.5,3288.1,3284.2,1.57752198]
[1737648763436,0.37016967,3288.0,3283.8,1.59061952]
[1737648763791,0.55,3287.9,3283.8,1.59061952]
[1737648763992,0.37016967,3287.8,3284.2,1.57752198]
[1737648764320,0.37016967,3287.8,3283.8,1.59061952]
[1737648764520,0.55,3287.7,3284.4,1.51003908]
[1737648764835,0.55,3287.7,3283.9,0.46926451]
[1737648764836,0.55,3287.5,3284.7,0.55]
[1737648765122,0.55,3287.9,3284.8,1.50004392]
[1737648765321,0.55,3287.7,3284.8,1.50004392]
[1737648765521,0.55,3287.5,3283.6,1.59946573]
[1737648765681,0.55,3287.5,3283.2,2.9238]
[1737648765682,0.8409114,3287.5,3283.8,1.59061952]
[1737648766023,0.55,3287.3,3283.6,1.59946573]
[1737648766189,0.55,3287.1,3283.3,1.50598759]
[1737648766384,0.0138,3287.0,3283.3,1.50598759]
[1737648766584,0.0138,3287.0,3283.3,4.55168759]
[1737648766799,0.0138,3287.0,3283.9,1.50373587]
[1737648767123,0.0138,3287.0,3284.1,1.54076637]
[1737648767323,0.0138,3287.0,3284.3,1.50340425]
[1737648767511,0.0138,3287.0,3284.6,0.55]
[1737648767699,0.0138,3287.0,3284.7,1.5060107]
[1737648768303,0.0138,3286.8,3283.5,1.59441205]
[1737648768538,0.0138,3286.8,3284.0,0.55]
[1737648768704,0.0138,3286.8,3283.7,1.53628628]
[1737648768909,0.0138,3286.8,3283.8,0.55]
[1737648769104,0.0138,3286.8,3284.3,1.50340425]
[1737648769314,0.0138,3286.8,3284.7,1.5060107]
[1737648769530,0.0138,3286.8,3283.8,1.59061952]
[1737648769728,0.0138,3286.8,3284.2,1.57752198]
[1737648770136,0.0138,3286.8,3284.4,1.51003908]
[1737648770506,0.0138,3286.8,3285.0,1.52493362]
[1737648770838,0.0138,3286.8,3284.1,4.13495]
[1737648770839,0.0138,3286.8,3285.3,0.55]
[1737648771005,0.0138,3286.8,3285.6,1.51117331]
[1737648771403,0.0138,3286.8,3285.8,1.59388511]
[1737648771603,0.0138,3286.8,3285.6,1.51117331]
[1737648771937,0.0138,3286.8,3286.0,1.57519883]
[1737648772133,0.0138,3286.8,3285.2,1.54598243]
[1737648772334,0.0138,3286.8,3284.7,1.5060107]
[1737648772709,0.0138,3286.8,3285.1,1.51014422]
[1737648772897,0.0138,3286.8,3284.7,1.5060107]
[1737648773231,0.0138,3286.8,3283.4,1.5928363]
[1737648773735,0.0138,3286.8,3283.8,2.63961952]
[1737648774046,0.0138,3286.8,3283.3,2.55498759]
[1737648774709,0.0138,3286.8,3283.3,1.50598759]
[1737648774910,0.55,3286.6,3282.7,1.5125371]
[1737648775114,0.0138,3286.3,3282.7,1.5125371]
[1737648776145,0.0138,3286.3,3283.1,1.54226906]
[1737648776445,0.0138,3286.3,3282.2,2.63372242]
[1737648776645,0.0138,3286.3,3282.8,1.57380312]
[1737648776954,0.0138,3286.3,3282.4,1.53229804]
[1737648777243,0.0138,3286.3,3283.0,1.54126224]
[1737648777541,0.0138,3286.3,3283.6,1.59946573]
[1737648777747,0.0138,3286.3,3283.8,1.59061952]
[1737648777909,0.0138,3286.3,3284.7,1.5060107]
[1737648778517,0.0138,3286.3,3284.6,1.0611]
[1737648778518,0.0138,3286.3,3285.3,1.5840934]
[1737648778731,0.0138,3286.3,3284.7,1.5060107]
[1737648779241,0.0138,3286.3,3284.5,1.56234196]
[1737648779433,0.0138,3286.3,3284.0,1.0611]
[1737648779434,0.0138,3286.3,3284.1,1.54076637]
[1737648779743,0.0138,3286.3,3284.4,1.51003908]
[1737648779910,0.0138,3286.3,3284.2,1.57752198]
[1737648780110,0.0138,3286.3,3283.6,1.59946573]
[1737648781554,0.0138,3286.3,3284.0,1.51334589]
[1737648781710,0.0138,3286.3,3283.1,1.54226906]
[1737648782113,0.0138,3286.3,3282.5,1.57704936]
[1737648782514,0.2666067,3287.2,3280.8,0.47691879]
[1737648782515,0.0138,3285.9,3281.4,1.53070484]
[1737648782764,0.0138,3285.0,3280.9,1.50624993]
[1737648782979,0.0138,3284.7,3280.3,1.55459862]
[1737648783185,0.0138,3284.3,3280.3,1.55459862]
[1737648783399,0.39944176,3284.2,3280.5,1.58124014]
[1737648783545,0.0138,3284.1,3280.5,1.58124014]
[1737648783755,0.0138,3283.9,3280.7,1.55193269]
[1737648783947,0.39944176,3283.9,3280.7,1.55193269]
[1737648784284,0.0138,3283.7,3280.4,0.45928615]
[1737648784578,0.0138,3283.5,3280.1,1.58930555]
[1737648785084,0.0138,3283.3,3281.0,1.52689854]
[1737648785254,0.0138,3283.3,3280.5,1.58124014]
[1737648785583,0.0138,3283.3,3280.7,1.55193269]
[1737648785881,0.0138,3283.3,3280.9,1.50624993]
[1737648786084,0.0138,3283.3,3281.3,1.5242365]
[1737648786247,0.0138,3283.3,3281.7,2.14757972]
[1737648786448,0.0138,3283.3,3282.4,35.0]
[1737648787045,0.0138,3283.3,3281.1,1.5950906]
[1737648787247,0.0138,3283.3,3281.1,1.77516216]
[1737648787480,0.0138,3283.3,3280.4,1.52423213]
[1737648787691,0.0138,3283.3,3280.1,35.0]
[1737648787894,0.3822751,3283.2,3280.0,1.066]
[1737648788047,0.0138,3283.1,3280.0,1.066]
[1737648788686,0.0138,3283.1,3280.1,1.58930555]
[1737648789002,0.0138,3283.1,3280.0,1.066]
[1737648789003,0.0138,3283.1,3280.3,1.55459862]
[1737648789148,0.0138,3283.1,3280.6,0.55]
[1737648789492,0.0138,3283.1,3280.9,1.50624993]
[1737648789780,0.0138,3283.1,3280.2,0.26553056]
[1737648789979,0.3822751,3283.0,3280.0,1.066]
[1737648790199,0.0138,3282.9,3280.1,1.58930555]
[1737648790615,0.0138,3282.9,3280.1,0.55]
[1737648790761,0.0138,3282.9,3280.3,0.55]
[1737648791206,0.0138,3282.9,3280.5,1.58124014]
[1737648791407,0.0138,3282.9,3280.9,0.55]
[1737648791561,0.0138,3282.9,3281.2,1.58538982]
[1737648791915,0.0138,3282.9,3281.6,1.51498468]
[1737648792123,0.0138,3282.9,3281.8,1.59741391]
[1737648792416,0.0138,3282.9,3281.7,0.55]
[1737648792417,0.0138,3282.9,3281.7,2.14757972]
[1737648792619,0.0138,3282.9,3281.9,0.55]
[1737648792981,0.0138,3282.9,3280.8,1.51506811]
[1737648793165,0.0138,3282.9,3280.1,1.58930555]
[1737648793658,0.0138,3282.9,3280.5,1.58124014]
[1737648793864,0.0138,3282.9,3280.1,1.58930555]
[1737648794133,0.0138,3282.9,3280.3,1.55459862]
[1737648794401,0.0138,3282.9,3280.7,1.55193269]
[1737648794565,0.0138,3282.9,3280.3,1.55459862]
[1737648795062,0.0138,3282.9,3280.7,1.55193269]
[1737648795263,0.0138,3282.9,3280.9,1.50624993]
[1737648795699,0.0138,3282.9,3280.3,1.55459862]
[1737648795919,0.0138,3282.9,3280.0,1.066]
[1737648795920,0.0138,3282.9,3280.1,1.58930555]
[1737648796124,0.0138,3282.7,3280.1,1.58930555]
[1737648796422,0.0251,3282.5,3280.2,0.55]
[1737648796634,0.3822751,3282.5,3280.5,1.58124014]
[1737648796906,1e-08,3282.4,3281.1,1.5950906]
[1737648797070,1e-08,3282.4,3281.4,1.53070484]
[1737648797274,1e-08,3282.4,3281.3,0.55]
[1737648797275,1e-08,3282.4,3281.8,1.59741391]
[1737648797496,1e-08,3282.4,3282.0,1.57131051]
[1737648797691,1e-08,3282.4,3282.2,1.59452242]
[1737648798109,1e-08,3282.4,3282.3,2.06946251]
[1737648798873,0.5,3286.0,3282.3,2.06946251]
[1737648799074,0.30412524,3285.8,3282.3,2.06946251]
[1737648799592,13.0,3286.7,3282.5,2.12704936]
[1737648799796,3.64339154,3286.6,3282.9,1.54818506]
[1737648800109,1.0000193,3286.5,3282.7,1.5125371]
[1737648800322,0.30412524,3286.4,3282.7,1.5125371]
[1737648800518,0.30412524,3286.4,3283.0,2.09126224]
[1737648800728,0.3392663,3286.9,3283.4,1.5928363]
[1737648801009,0.3392663,3286.9,3283.1,35.0]
[1737648801010,0.30412524,3286.8,3284.0,1.51334589]
[1737648801218,0.3392663,3286.7,3284.0,1.51334589]
[1737648801388,0.30412524,3286.6,3283.6,1.59946573]
[1737648801583,0.3392663,3286.5,3283.0,1.54126224]
[1737648801799,0.85412524,3286.4,3283.0,1.54126224]
[1737648802000,1.19339154,3286.4,3283.7,0.55]
[1737648802205,1.19339154,3286.4,3283.6,1.59946573]
[1737648802414,1.19339154,3286.4,3283.8,1.59061952]
[1737648802602,0.30412524,3286.8,3283.6,1.59946573]
[1737648802800,0.30412524,3286.8,3283.8,1.59061952]
[1737648803001,0.30412524,3286.8,3283.7,0.55]
[1737648803002,0.30412524,3286.8,3284.0,1.51334589]
[1737648803203,0.55,3286.7,3283.6,1.59946573]
[1737648803705,0.55,3286.7,3283.8,1.59061952]
[1737648804027,0.55,3286.7,3283.1,0.26937622]
[1737648804028,0.30412524,3286.7,3284.0,1.51334589]
[1737648804205,0.30412524,3286.7,3283.9,0.55]
[1737648804206,0.30412524,3286.7,3283.2,1.52990454]
[1737648804407,0.30412524,3286.7,3283.1,0.26937622]
[1737648804408,0.30412524,3286.7,3283.4,1.5928363]
[1737648804721,0.55,3286.6,3283.4,1.5928363]
[1737648804925,0.55,3286.8,3282.3,1.51946251]
[1737648805089,0.55,3286.8,3282.0,1.57131051]
[1737648805090,0.55,3286.4,3282.0,1.57131051]
[1737648805444,0.3392663,3286.3,3282.4,1.53229804]
[1737648805627,0.89341084,3287.1,3283.1,1.54226906]
[1737648805840,0.55414454,3287.1,3283.5,1.59441205]
[1737648805992,0.2500193,3287.5,3283.7,1.53628628]
[1737648806326,0.55,3287.1,3283.4,1.5928363]
[1737648806532,0.55,3287.1,3283.8,1.59061952]
[1737648806826,0.30412524,3287.1,3284.0,1.51334589]
[1737648807001,0.2500193,3287.5,3284.4,1.51003908]
[1737648807205,0.2500193,3287.5,3284.6,1.53586757]
[1737648807722,0.64339154,3287.9,3284.6,1.53586757]
[1737648808100,3.85412524,3287.6,3283.4,1.5928363]
[1737648808307,3.85412524,3287.6,3283.6,1.59946573]
[1737648808627,3.55,3287.6,3284.4,1.51003908]
[1737648808819,3.55,3287.6,3283.6,1.59946573]
[1737648809002,3.55,3287.6,3283.7,0.55]
[1737648809229,3.55,3287.6,3284.2,1.57752198]
[1737648809434,3.55,3287.6,3284.3,0.55]
[1737648809629,3.55,3287.6,3283.6,1.59946573]
[1737648809830,3.55,3287.6,3282.8,1.57380312]
[1737648810222,3.0,3287.6,3283.3,0.55]
[1737648810427,0.55,3287.5,3283.6,1.59946573]
[1737648810619,0.55,3287.5,3283.8,1.59061952]
[1737648810929,0.55,3287.5,3282.2,3.04666]
[1737648810930,3.0,3286.9,3283.3,1.50598759]
[1737648811266,7.151,3287.2,3283.3,1.50598759]
[1737648811561,3.0,3287.1,3283.9,1.50373587]
[1737648811946,3.0,3287.1,3283.3,1.50598759]
[1737648812146,3.0,3286.9,3283.0,1.54126224]
[1737648812350,5.32,3287.0,3283.0,1.54126224]
[1737648812351,3.0,3286.7,3283.0,1.54126224]
[1737648812921,5.32,3286.8,3283.2,1.52990454]
[1737648813125,3.0,3286.7,3283.7,1.53628628]
[1737648813351,18.32,3287.1,3283.7,1.53628628]
[1737648813559,18.32,3287.1,3284.0,1.51334589]
[1737648813854,18.32,3287.1,3284.3,0.55]
[1737648813855,5.32,3287.1,3284.3,0.55]
[1737648814056,3.55,3287.0,3284.3,0.55]
[1737648814244,3.55,3287.0,3284.4,1.51003908]
[1737648814421,7.514,3287.7,3284.4,1.51003908]
[1737648814625,7.514,3287.7,3284.5,1.56234196]
[1737648814850,7.514,3287.7,3284.7,1.5060107]
[1737648815052,3.0,3287.6,3284.7,1.5060107]
[1737648815355,3.0,3287.6,3284.3,1.50340425]
[1737648815536,0.55,3287.5,3284.3,1.50340425]
[1737648815736,0.55,3287.5,3284.2,0.5]
[1737648815737,0.55,3287.5,3284.6,0.55]
[1737648815939,0.55,3287.5,3284.7,1.5060107]
[1737648816159,0.55,3287.5,3283.3,0.20299045]
[1737648816160,0.55,3287.5,3283.9,1.50373587]
[1737648816355,0.55,3287.5,3284.3,1.50340425]
[1737648816858,0.55,3287.5,3283.9,0.20037359]
[1737648816859,7.514,3287.7,3284.8,0.55]
[1737648817058,2.194,3287.7,3285.1,1.51014422]
[1737648817359,2.194,3287.7,3285.5,1.59735151]
[1737648817571,2.194,3287.7,3285.7,1.52194955]
[1737648817763,2.194,3287.7,3284.8,1.50004392]
[1737648818060,2.194,3287.7,3285.0,1.52493362]
[1737648818232,3.55,3287.6,3284.8,1.50004392]
[1737648818429,3.55,3287.6,3285.0,1.52493362]
[1737648818626,3.0,3287.6,3285.4,1.59215716]
[1737648818830,13.0,3288.8,3285.3,0.55]
[1737648818831,0.55,3288.7,3285.3,0.55]
[1737648819027,0.55,3288.7,3285.2,1.54598243]
[1737648819258,3.55,3288.7,3285.0,1.52493362]
[1737648819568,3.55,3288.7,3284.9,0.55]
[1737648819569,0.55,3288.5,3284.2,1.57752198]
[1737648819772,0.55,3288.5,3284.8,0.5]
[1737648819932,3.0,3288.3,3284.9,1.57505257]
[1737648820478,0.55,3288.2,3284.9,1.57505257]
[1737648820630,0.55,3288.2,3285.3,1.5840934]
[1737648820834,5.32,3288.7,3285.5,1.59735151]
[1737648821184,5.32,3288.7,3285.7,1.52194955]
[1737648821477,0.55,3288.7,3285.1,1.51014422]
[1737648821630,0.55,3288.7,3285.0,2.07493362]
[1737648821826,0.27871939,3288.7,3285.0,1.52493362]
[1737648822031,13.0,3288.8,3285.4,1.59215716]
[1737648822228,3.0,3288.7,3285.6,1.51117331]
[1737648822570,3.0,3288.7,3285.1,1.51014422]
[1737648822732,1.831,3288.6,3285.0,1.52493362]
[1737648823066,3.8,3288.5,3284.5,1.56234196]
[1737648823236,3.55,3288.5,3285.0,1.52493362]
[1737648823434,3.55,3288.5,3285.2,0.55]
[1737648823631,3.55,3288.5,3285.5,1.59735151]
[1737648823851,0.55,3288.8,3285.5,1.59735151]
[1737648824494,3.0,3288.9,3285.7,1.52194955]
[1737648824663,3.0,3288.9,3285.8,0.55]
[1737648824864,3.0,3288.9,3285.8,2.14388511]
[1737648825456,3.0,3288.9,3285.5,0.5]
[1737648825457,3.0,3288.9,3285.6,1.51117331]
[1737648825654,0.55,3288.8,3285.0,1.52493362]
[1737648825857,0.55,3288.8,3285.4,1.59215716]
[1737648826095,0.55,3288.8,3284.9,1.57505257]
[1737648826257,0.55,3288.8,3285.5,1.59735151]
[1737648826453,0.55,3288.8,3285.1,2.06014422]
[1737648827323,0.8,3288.8,3285.1,2.06014422]
[1737648827591,3.0,3288.9,3285.1,2.26615864]
[1737648827759,3.0,3288.9,3285.6,2.06117331]
[1737648829058,7.512,3289.0,3286.1,2.1042994]
[1737648829297,3.55,3288.9,3286.1,2.1042994]
[1737648830111,3.55,3288.9,3286.3,1.5087277]
[1737648830257,3.55,3288.9,3286.2,1.53527701]
[1737648830592,3.55,3288.9,3285.1,1.26351442]
[1737648830593,3.55,3288.9,3285.2,1.54598243]
[1737648830792,3.55,3288.9,3285.6,1.51117331]
[1737648830999,3.55,3288.9,3285.2,1.54598243]
[1737648831195,3.55,3288.9,3285.6,1.51117331]
[1737648831399,3.55,3288.9,3285.3,1.5840934]
[1737648831592,3.55,3288.9,3285.6,1.51117331]
[1737648831896,3.55,3288.9,3285.8,1.59388511]
[1737648832094,3.55,3288.9,3285.5,1.59735151]
[1737648832766,3.55,3288.9,3285.9,1.58134895]
[1737648832971,3.55,3288.9,3285.0,1.52493362]
[1737648833377,13.0,3289.2,3286.2,1.53527701]
[1737648833378,18.32,3289.2,3286.2,1.53527701]
[1737648833577,13.0,3289.2,3286.8,0.55]
[1737648833892,0.25,3290.9,3286.8,0.55]
[1737648833893,13.0,3290.6,3286.9,1.52772277]
[1737648834195,13.0,3290.6,3286.8,1.54554369]
[1737648834395,13.0,3290.6,3287.0,1.58752039]
[1737648834596,3.0,3290.5,3286.8,1.54554369]
[1737648834798,3.0,3290.5,3287.0,1.58752039]
[1737648834972,0.55,3290.5,3287.0,1.58752039]
[1737648835177,2.381,3290.3,3286.8,1.54554369]
[1737648835413,2.381,3290.3,3286.3,1.5087277]
[1737648835619,2.65675812,3290.3,3286.3,1.5087277]
[1737648835794,2.65675812,3290.3,3286.5,1.53461346]
[1737648836003,5.381,3290.1,3286.7,1.59713795]
[1737648836219,5.381,3290.1,3286.8,1.54554369]
[1737648836410,3.55,3290.1,3286.8,1.54554369]
[1737648836612,3.55,3290.1,3286.5,1.53461346]
[1737648836822,16.55,3290.1,3286.4,0.5]
[1737648837119,16.55,3290.1,3286.5,1.53461346]
[1737648837500,0.55,3289.7,3286.5,1.53461346]
[1737648838228,3.0,3290.0,3286.5,1.53461346]
[1737648838516,0.55,3289.7,3286.5,1.53461346]